{"text_format":"3","workbook":"xlsx","n_sheets":4,"sheets":["Início","Orçamento do Casamento","Roupa-Copo de água-Música-Fotos","Decoração-Flores-Prendas-Desloc"],"not_rendered":{"charts":1,"defined_names":22},"read":"whole","date_system":"1900"}

{"sheet":"Início","index":0,"n_rows":7,"n_cols":2,"rows_kept":7}
[null,"ACERCA DESTE MODELO"]
[null,"Utilize este modelo para controlar as suas despesas de casamento."]
[null,"Introduza os custos real e estimativa relacionados em várias categorias em folhas de cálculo separadas."]
[null,"O Resumo do Orçamento de Casamento e o gráfico são atualizados automaticamente."]
[null,"Nota: "]
[null,"Encontram-se instruções adicionais na coluna A de cada folha de cálculo. O texto encontra-se intencionalmente oculto. Para remover o texto, selecione a coluna A e, em seguida, selecione Eliminar. Para mostrar o texto, selecione a coluna A e, em seguida, mude a cor do tipo de letra."]
[null,"Para saber mais sobre as tabelas, prima Shift+F10 numa tabela, selecione a opção Tabela e, em seguida, selecione Texto Alternativo."]

{"sheet":"Orçamento do Casamento","index":1,"n_rows":19,"n_cols":6,"rows_kept":19,"merged":[[2,2,4,5],[18,2,42,5]]}
["Crie um Orçamento do Casamento de Casamento nesta folha de cálculo. Introduza os detalhes nas tabelas na folha de cálculo Roupa-Copo de água-Música-Fotos e na folha de cálculo Decoração-Flores-Prendas-Desloc para atualizar o resumo e o gráfico na folha de cálculo atual. Existem instruções úteis sobre como utilizar esta folha de cálculo nas células desta coluna. A etiqueta da Data do Casamento está na célula C1.",null,"Data do Casamento:"]
["Introduza a Data do Casamento na célula C2. Os Dias Restantes são calculados automaticamente na célula E2.",null,{"$f":"TODAY()+365","v":"2019-12-04"},"Dias Restantes:",{"$f":"C2-TODAY()","v":365}]
["O título desta folha de cálculo está na célula C3. A instrução seguinte está na célula A6.",null,"Resumo do Orçamento de Casamento"]
[]
[]
["A Tabela de Resumo do Orçamento que começa na célula C6 é atualizada automaticamente. A instrução seguinte está na célula A19.",null,"CATEGORIA","ESTIMATIVA","REAL","ACIMA/ABAIXO"]
[null,null,"Vestuário",{"$f":"Total_Roupa_est","v":{"v":9490,"d":"9,490.00"}},{"$f":"Total_Roupa_rea","v":{"v":9770,"d":"9,770.00"}},{"$f":"ResumoOrçamento[[#This Row],[ESTIMATIVA]]-ResumoOrçamento[[#This Row],[REAL]]","v":{"v":-280,"d":"-280.00"}}]
[null,null,"Copo-d'água",{"$f":"Total_CopoDeÁgua_est","v":{"v":1050,"d":"1,050.00"}},{"$f":"Total_CopoDeÁgua_rea","v":{"v":928,"d":"928.00"}},{"$f":"ResumoOrçamento[[#This Row],[ESTIMATIVA]]-ResumoOrçamento[[#This Row],[REAL]]","v":{"v":122,"d":"122.00"}}]
[null,null,"Música",{"$f":"Total_Entretenimento_Música_est","v":{"v":600,"d":"600.00"}},{"$f":"Total_Entretenimento_Música_rea","v":{"v":400,"d":"400.00"}},{"$f":"ResumoOrçamento[[#This Row],[ESTIMATIVA]]-ResumoOrçamento[[#This Row],[REAL]]","v":{"v":200,"d":"200.00"}}]
[null,null,"Impressões",{"$f":"Total_Artigos_Papelaria_Impressões_est","v":{"v":935,"d":"935.00"}},{"$f":"Total_Artigos_Papelaria_Impressões_rea","v":{"v":870,"d":"870.00"}},{"$f":"ResumoOrçamento[[#This Row],[ESTIMATIVA]]-ResumoOrçamento[[#This Row],[REAL]]","v":{"v":65,"d":"65.00"}}]
[null,null,"Fotografias",{"$f":"Total_Fotografia_est","v":{"v":1625,"d":"1,625.00"}},{"$f":"Total_Fotografia_rea","v":{"v":1575,"d":"1,575.00"}},{"$f":"ResumoOrçamento[[#This Row],[ESTIMATIVA]]-ResumoOrçamento[[#This Row],[REAL]]","v":{"v":50,"d":"50.00"}}]
[null,null,"Decorações",{"$f":"Total_Decorações_est","v":{"v":700,"d":"700.00"}},{"$f":"Total_Decorações_rea","v":{"v":720,"d":"720.00"}},{"$f":"ResumoOrçamento[[#This Row],[ESTIMATIVA]]-ResumoOrçamento[[#This Row],[REAL]]","v":{"v":-20,"d":"-20.00"}}]
[null,null,"Flores",{"$f":"Total_Flores_est","v":{"v":900,"d":"900.00"}},{"$f":"Total_Flores_rea","v":{"v":850,"d":"850.00"}},{"$f":"ResumoOrçamento[[#This Row],[ESTIMATIVA]]-ResumoOrçamento[[#This Row],[REAL]]","v":{"v":50,"d":"50.00"}}]
[null,null,"Presentes",{"$f":"Total_Prendas_est","v":{"v":1345,"d":"1,345.00"}},{"$f":"Total_Prendas_rea","v":{"v":1075,"d":"1,075.00"}},{"$f":"ResumoOrçamento[[#This Row],[ESTIMATIVA]]-ResumoOrçamento[[#This Row],[REAL]]","v":{"v":270,"d":"270.00"}}]
[null,null,"Deslocações",{"$f":"Total_Deslocações_Transporte_est","v":{"v":100,"d":"100.00"}},{"$f":"Total_Deslocações_Transporte_rea","v":{"v":165,"d":"165.00"}},{"$f":"ResumoOrçamento[[#This Row],[ESTIMATIVA]]-ResumoOrçamento[[#This Row],[REAL]]","v":{"v":-65,"d":"-65.00"}}]
[null,null,"Outros",{"$f":"Total_Outras_Despesas_est","v":{"v":885,"d":"885.00"}},{"$f":"Total_Outras_Despesas_rea","v":{"v":1021,"d":"1,021.00"}},{"$f":"ResumoOrçamento[[#This Row],[ESTIMATIVA]]-ResumoOrçamento[[#This Row],[REAL]]","v":{"v":-136,"d":"-136.00"}}]
[null,null,"Despesas Totais",{"$f":"SUBTOTAL(109,ResumoOrçamento[ESTIMATIVA])","v":{"v":17630,"d":"17,630.00"}},{"$f":"SUBTOTAL(109,ResumoOrçamento[REAL])","v":{"v":17374,"d":"17,374.00"}},{"$f":"SUBTOTAL(109,ResumoOrçamento[ACIMA/ABAIXO])","v":{"v":256,"d":"256.00"}}]
[]
["O Gráfico circular na célula C19 é atualizado automaticamente.",null,"O Gráfico circular que mostra a percentagem de despesas de cada categoria está nesta célula."]

{"sheet":"Roupa-Copo de água-Música-Fotos","index":2,"n_rows":56,"n_cols":6,"rows_kept":56,"merged":[[16,1,16,4],[28,1,28,4],[29,1,29,4],[35,1,35,4],[48,1,48,4]]}
["Introduza os custos Estimativa e Real para cada categoria nas respetivas tabelas nesta folha de cálculo. A quantia acima ou abaixo é calculada automaticamente. A etiqueta Roupa está na célula à direita. Existem instruções úteis sobre como utilizar esta folha de cálculo nas células desta coluna. Prima a Seta Para Baixo para começar.","Roupa",{"$nulls":3}," "]
[" Introduza os detalhes na tabela Roupa a partir da célula à direita. A instrução seguinte está na célula A18.","CATEGORIA","ESTIMATIVA","REAL","ACIMA/ABAIXO"," "]
[null,"Anéis de noivado",{"v":1500,"d":"1,500.00"},{"v":1500,"d":"1,500.00"},{"$f":"'Roupa-Copo de água-Música-Fotos'!$C3-'Roupa-Copo de água-Música-Fotos'!$D3","v":{"v":0,"d":"0.00"}}]
[null,"Anel do cônjuge 1",{"v":2000,"d":"2,000.00"},{"v":2300,"d":"2,300.00"},{"$f":"'Roupa-Copo de água-Música-Fotos'!$C4-'Roupa-Copo de água-Música-Fotos'!$D4","v":{"v":-300,"d":"-300.00 "}}]
[null,"Vestido/fato do cônjuge 1",{"v":3000,"d":"3,000.00"},{"v":2750,"d":"2,750.00"},{"$f":"'Roupa-Copo de água-Música-Fotos'!$C5-'Roupa-Copo de água-Música-Fotos'!$D5","v":{"v":250,"d":"250.00"}}]
[null,"Véu/acessório para cabeça do cônjuge 1",{"v":500,"d":"500.00"},{"v":500,"d":"500.00"},{"$f":"'Roupa-Copo de água-Música-Fotos'!$C6-'Roupa-Copo de água-Música-Fotos'!$D6","v":{"v":0,"d":"0.00"}}]
[null,"Sapatos do cônjuge 1",{"v":350,"d":"350.00"},{"v":300,"d":"300.00"},{"$f":"'Roupa-Copo de água-Música-Fotos'!$C7-'Roupa-Copo de água-Música-Fotos'!$D7","v":{"v":50,"d":"50.00"}}]
[null,"Joias do cônjuge 1",{"v":400,"d":"400.00"},{"v":550,"d":"550.00"},{"$f":"'Roupa-Copo de água-Música-Fotos'!$C8-'Roupa-Copo de água-Música-Fotos'!$D8","v":{"v":-150,"d":"-150.00 "}}]
[null,"Meias do cônjuge 1",{"v":20,"d":"20.00"},{"v":20,"d":"20.00"},{"$f":"'Roupa-Copo de água-Música-Fotos'!$C9-'Roupa-Copo de água-Música-Fotos'!$D9","v":{"v":0,"d":"0.00"}}]
[null,"Anel do cônjuge 2",{"v":300,"d":"300.00"},{"v":250,"d":"250.00"},{"$f":"'Roupa-Copo de água-Música-Fotos'!$C10-'Roupa-Copo de água-Música-Fotos'!$D10","v":{"v":50,"d":"50.00"}}]
[null,"Vestido/fato do cônjuge 2",{"v":300,"d":"300.00"},{"v":350,"d":"350.00"},{"$f":"'Roupa-Copo de água-Música-Fotos'!$C11-'Roupa-Copo de água-Música-Fotos'!$D11","v":{"v":-50,"d":"-50.00 "}}]
[null,"Véu/acessório para cabeça do cônjuge 2",{"v":500,"d":"500.00"},{"v":500,"d":"500.00"},{"$f":"'Roupa-Copo de água-Música-Fotos'!$C12-'Roupa-Copo de água-Música-Fotos'!$D12","v":{"v":0,"d":"0.00"}}]
[null,"Sapatos do cônjuge 2",{"v":200,"d":"200.00"},{"v":175,"d":"175.00"},{"$f":"'Roupa-Copo de água-Música-Fotos'!$C13-'Roupa-Copo de água-Música-Fotos'!$D13","v":{"v":25,"d":"25.00"}}]
[null,"Joias do cônjuge 2",{"v":400,"d":"400.00"},{"v":550,"d":"550.00"},{"$f":"'Roupa-Copo de água-Música-Fotos'!$C14-'Roupa-Copo de água-Música-Fotos'!$D14","v":{"v":-150,"d":"-150.00 "}}]
[null,"Meias do cônjuge 2",{"v":20,"d":"20.00"},{"v":25,"d":"25.00"},{"$f":"'Roupa-Copo de água-Música-Fotos'!$C15-'Roupa-Copo de água-Música-Fotos'!$D15","v":{"v":-5,"d":"-5.00 "}}]
[null,"Total de Vestuário",{"$f":"SUBTOTAL(109,Roupa[ESTIMATIVA])","v":{"v":9490,"d":"9,490.00"}},{"$f":"SUBTOTAL(109,Roupa[REAL])","v":{"v":9770,"d":"9,770.00"}},{"$f":"SUBTOTAL(109,Roupa[ACIMA/ABAIXO])","v":{"v":-280,"d":"-280.00 "}}]
[]
["A etiqueta Copo DeÁgua está na célula à direita","Copo DeÁgua"]
["Introduza os custos do Copo d'água, excluindo custos de Entretenimento e Decoração na tabela a partir da célula à direita. A instrução seguinte está na célula A31.","CATEGORIA","ESTIMATIVA","REAL","ACIMA/ABAIXO"]
[null,"Custos do salão/espaço",{"v":200,"d":"200.00"},{"v":150,"d":"150.00"},{"$f":"'Roupa-Copo de água-Música-Fotos'!$C20-'Roupa-Copo de água-Música-Fotos'!$D20","v":{"v":50,"d":"50.00"}}]
[null,"Mesas e cadeiras",{"v":100,"d":"100.00"},{"v":50,"d":"50.00"},{"$f":"'Roupa-Copo de água-Música-Fotos'!$C21-'Roupa-Copo de água-Música-Fotos'!$D21","v":{"v":50,"d":"50.00"}}]
[null,"Comida",{"v":0,"d":"0.00"},{"v":0,"d":"0.00"},{"$f":"'Roupa-Copo de água-Música-Fotos'!$C22-'Roupa-Copo de água-Música-Fotos'!$D22","v":{"v":0,"d":"0.00"}}]
[null,"Bebidas",{"v":0,"d":"0.00"},{"v":0,"d":"0.00"},{"$f":"'Roupa-Copo de água-Música-Fotos'!$C23-'Roupa-Copo de água-Música-Fotos'!$D23","v":{"v":0,"d":"0.00"}}]
[null,"Toalhas",{"v":0,"d":"0.00"},{"v":0,"d":"0.00"},{"$f":"'Roupa-Copo de água-Música-Fotos'!$C24-'Roupa-Copo de água-Música-Fotos'!$D24","v":{"v":0,"d":"0.00"}}]
[null,"Bolo",{"v":700,"d":"700.00"},{"v":700,"d":"700.00"},{"$f":"'Roupa-Copo de água-Música-Fotos'!$C25-'Roupa-Copo de água-Música-Fotos'!$D25","v":{"v":0,"d":"0.00"}}]
[null,"Lembranças",{"v":50,"d":"50.00"},{"v":28,"d":"28.00"},{"$f":"'Roupa-Copo de água-Música-Fotos'!$C26-'Roupa-Copo de água-Música-Fotos'!$D26","v":{"v":22,"d":"22.00"}}]
[null,"Trabalhadores e gorjetas",{"v":0,"d":"0.00"},{"v":0,"d":"0.00"},{"$f":"'Roupa-Copo de água-Música-Fotos'!$C27-'Roupa-Copo de água-Música-Fotos'!$D27","v":{"v":0,"d":"0.00"}}]
[null,"Total de Copo d'água",{"$f":"SUBTOTAL(109,CopoDeÁgua[ESTIMATIVA])","v":{"v":1050,"d":"1,050.00"}},{"$f":"SUBTOTAL(109,CopoDeÁgua[REAL])","v":{"v":928,"d":"928.00"}},{"$f":"SUBTOTAL(109,CopoDeÁgua[ACIMA/ABAIXO])","v":{"v":122,"d":"122.00"}}]
[null,"* Exclui entretenimento e decorações"]
[]
["A etiqueta Música ou Entretenimento está na célula direita.","Música/Entretenimento"]
["Introduza os detalhes na tabela Música a partir da célula à direita. A instrução seguinte está na célula A37.","CATEGORIA","ESTIMATIVA","REAL","ACIMA/ABAIXO"]
[null,"Músicos para a cerimónia",{"v":400,"d":"400.00"},{"v":400,"d":"400.00"},{"$f":"'Roupa-Copo de água-Música-Fotos'!$C33-'Roupa-Copo de água-Música-Fotos'!$D33","v":{"v":0,"d":"0.00"}}]
[null,"Banda/DJ para o copo-d'água",{"v":200,"d":"200.00"},{"v":0,"d":"0.00"},{"$f":"'Roupa-Copo de água-Música-Fotos'!$C34-'Roupa-Copo de água-Música-Fotos'!$D34","v":{"v":200,"d":"200.00"}}]
[null,"Total de Música/Entretenimento",{"$f":"SUBTOTAL(109,Música[ESTIMATIVA])","v":{"v":600,"d":"600.00"}},{"$f":"SUBTOTAL(109,Música[REAL])","v":{"v":400,"d":"400.00"}},{"$f":"SUBTOTAL(109,Música[ACIMA/ABAIXO])","v":{"v":200,"d":"200.00"}}]
[]
["A etiqueta Impressão ou Artigos de Papelaria está na célula direita.","Impressão/Artigos de Papelaria"]
["Introduza os detalhes na tabela Impressões a partir da célula à direita. A instrução seguinte está na célula A50.","CATEGORIA","ESTIMATIVA","REAL","ACIMA/ABAIXO"]
[null,"Convites",{"v":500,"d":"500.00"},{"v":450,"d":"450.00"},{"$f":"'Roupa-Copo de água-Música-Fotos'!$C39-'Roupa-Copo de água-Música-Fotos'!$D39","v":{"v":50,"d":"50.00"}}]
[null,"Declarações",{"v":200,"d":"200.00"},{"v":175,"d":"175.00"},{"$f":"'Roupa-Copo de água-Música-Fotos'!$C40-'Roupa-Copo de água-Música-Fotos'!$D40","v":{"v":25,"d":"25.00"}}]
[null,"Cartões de agradecimento",{"v":100,"d":"100.00"},{"v":100,"d":"100.00"},{"$f":"'Roupa-Copo de água-Música-Fotos'!$C41-'Roupa-Copo de água-Música-Fotos'!$D41","v":{"v":0,"d":"0.00"}}]
[null,"Papel de carta pessoal",{"v":0,"d":"0.00"},{"v":0,"d":"0.00"},{"$f":"'Roupa-Copo de água-Música-Fotos'!$C42-'Roupa-Copo de água-Música-Fotos'!$D42","v":{"v":0,"d":"0.00"}}]
[null,"Livro de convidados",{"v":25,"d":"25.00"},{"v":25,"d":"25.00"},{"$f":"'Roupa-Copo de água-Música-Fotos'!$C43-'Roupa-Copo de água-Música-Fotos'!$D43","v":{"v":0,"d":"0.00"}}]
[null,"Programas",{"v":75,"d":"75.00"},{"v":80,"d":"80.00"},{"$f":"'Roupa-Copo de água-Música-Fotos'!$C44-'Roupa-Copo de água-Música-Fotos'!$D44","v":{"v":-5,"d":"-5.00 "}}]
[null,"Guardanapos do copo-d'água",{"v":35,"d":"35.00"},{"v":40,"d":"40.00"},{"$f":"'Roupa-Copo de água-Música-Fotos'!$C45-'Roupa-Copo de água-Música-Fotos'!$D45","v":{"v":-5,"d":"-5.00 "}}]
[null,"Caixas de fósforos (lembranças)",{"v":0,"d":"0.00"},{"v":0,"d":"0.00"},{"$f":"'Roupa-Copo de água-Música-Fotos'!$C46-'Roupa-Copo de água-Música-Fotos'!$D46","v":{"v":0,"d":"0.00"}}]
[null,"Caligrafia",{"v":0,"d":"0.00"},{"v":0,"d":"0.00"},{"$f":"'Roupa-Copo de água-Música-Fotos'!$C47-'Roupa-Copo de água-Música-Fotos'!$D47","v":{"v":0,"d":"0.00"}}]
[null,"Total de Impressões/Artigos de Papelaria",{"$f":"SUBTOTAL(109,Impressões[ESTIMATIVA])","v":{"v":935,"d":"935.00"}},{"$f":"SUBTOTAL(109,Impressões[REAL])","v":{"v":870,"d":"870.00"}},{"$f":"SUBTOTAL(109,Impressões[ACIMA/ABAIXO])","v":{"v":65,"d":"65.00"}}]
[]
["A etiqueta Fotografias está na célula à direita","Fotografias"]
["Introduza os detalhes na tabela Fotografias a partir da célula à direita.","CATEGORIA","ESTIMATIVA","REAL","ACIMA/ABAIXO"]
[null,"Formais",{"v":1300,"d":"1,300.00"},{"v":1300,"d":"1,300.00"},{"$f":"'Roupa-Copo de água-Música-Fotos'!$C52-'Roupa-Copo de água-Música-Fotos'!$D52","v":{"v":0,"d":"0.00"}}]
[null,"Impressões extra",{"v":25,"d":"25.00"},{"v":25,"d":"25.00"},{"$f":"'Roupa-Copo de água-Música-Fotos'!$C53-'Roupa-Copo de água-Música-Fotos'!$D53","v":{"v":0,"d":"0.00"}}]
[null,"Álbuns de fotografias",{"v":100,"d":"100.00"},{"v":100,"d":"100.00"},{"$f":"'Roupa-Copo de água-Música-Fotos'!$C54-'Roupa-Copo de água-Música-Fotos'!$D54","v":{"v":0,"d":"0.00"}}]
[null,"Vídeos",{"v":200,"d":"200.00"},{"v":150,"d":"150.00"},{"$f":"'Roupa-Copo de água-Música-Fotos'!$C55-'Roupa-Copo de água-Música-Fotos'!$D55","v":{"v":50,"d":"50.00"}}]
[null,"Total de Fotografias",{"$f":"SUBTOTAL(109,Fotografias[ESTIMATIVA])","v":{"v":1625,"d":"1,625.00"}},{"$f":"SUBTOTAL(109,Fotografias[REAL])","v":{"v":1575,"d":"1,575.00"}},{"$f":"SUBTOTAL(109,Fotografias[ACIMA/ABAIXO])","v":{"v":50,"d":"50.00"}}]

{"sheet":"Decoração-Flores-Prendas-Desloc","index":3,"n_rows":48,"n_cols":5,"rows_kept":48,"merged":[[8,1,8,4],[9,1,9,4],[18,1,18,4],[27,1,27,4],[34,1,34,4]]}
["Introduza os custos Estimativa e Real para cada categoria nas respetivas tabelas nesta folha de cálculo. A quantia acima ou abaixo é calculada automaticamente. A etiqueta Decorações está na célula à direita. Existem instruções úteis sobre como utilizar esta folha de cálculo nas células desta coluna. Prima a Seta Para Baixo para começar.","Decorações*"]
["Introduza os custos da Decoração, excluindo custos das Flores na tabela a partir da célula à direita. A instrução seguinte está na célula A11.","CATEGORIA","ESTIMATIVA","REAL","ACIMA/ABAIXO"]
[null,"Laços para assentos",{"v":0,"d":"0.00"},{"v":0,"d":"0.00"},{"$f":"'Decoração-Flores-Prendas-Desloc'!$C3-'Decoração-Flores-Prendas-Desloc'!$D3","v":{"v":0,"d":"0.00"}}]
[null,"Centros de Mesa",{"v":300,"d":"300.00"},{"v":320,"d":"320.00"},{"$f":"'Decoração-Flores-Prendas-Desloc'!$C4-'Decoração-Flores-Prendas-Desloc'!$D4","v":{"v":-20,"d":"-20.00 "}}]
[null,"Velas",{"v":100,"d":"100.00"},{"v":75,"d":"75.00"},{"$f":"'Decoração-Flores-Prendas-Desloc'!$C5-'Decoração-Flores-Prendas-Desloc'!$D5","v":{"v":25,"d":"25.00"}}]
[null,"Iluminação",{"v":100,"d":"100.00"},{"v":75,"d":"75.00"},{"$f":"'Decoração-Flores-Prendas-Desloc'!$C6-'Decoração-Flores-Prendas-Desloc'!$D6","v":{"v":25,"d":"25.00"}}]
[null,"Balões",{"v":200,"d":"200.00"},{"v":250,"d":"250.00"},{"$f":"'Decoração-Flores-Prendas-Desloc'!$C7-'Decoração-Flores-Prendas-Desloc'!$D7","v":{"v":-50,"d":"-50.00 "}}]
[null,"Total de Decorações",{"$f":"SUBTOTAL(109,Decorações[ESTIMATIVA])","v":{"v":700,"d":"700.00"}},{"$f":"SUBTOTAL(109,Decorações[REAL])","v":{"v":720,"d":"720.00"}},{"$f":"SUBTOTAL(109,Decorações[ACIMA/ABAIXO])","v":{"v":-20,"d":"-20.00 "}}]
[null,"* Exclui flores"]
[]
["A etiqueta Flores está na célula à direita.","Flores"]
["Introduza os detalhes na tabela Flores a partir da célula à direita. A instrução seguinte está na célula A20.","CATEGORIA","ESTIMATIVA","REAL","ACIMA/ABAIXO"]
[null,"Bouquets",{"v":500,"d":"500.00"},{"v":450,"d":"450.00"},{"$f":"'Decoração-Flores-Prendas-Desloc'!$C13-'Decoração-Flores-Prendas-Desloc'!$D13","v":{"v":50,"d":"50.00"}}]
[null,"Flores na lapela",{"v":0,"d":"0.00"},{"v":0,"d":"0.00"},{"$f":"'Decoração-Flores-Prendas-Desloc'!$C14-'Decoração-Flores-Prendas-Desloc'!$D14","v":{"v":0,"d":"0.00"}}]
[null,"Ramalhetes (Acessório)",{"v":0,"d":"0.00"},{"v":0,"d":"0.00"},{"$f":"'Decoração-Flores-Prendas-Desloc'!$C15-'Decoração-Flores-Prendas-Desloc'!$D15","v":{"v":0,"d":"0.00"}}]
[null,"Cerimónia",{"v":400,"d":"400.00"},{"v":400,"d":"400.00"},{"$f":"'Decoração-Flores-Prendas-Desloc'!$C16-'Decoração-Flores-Prendas-Desloc'!$D16","v":{"v":0,"d":"0.00"}}]
[null,"Copo-d'água",{"v":0,"d":"0.00"},{"v":0,"d":"0.00"},{"$f":"'Decoração-Flores-Prendas-Desloc'!$C17-'Decoração-Flores-Prendas-Desloc'!$D17","v":{"v":0,"d":"0.00"}}]
[null,"Total de Flores",{"$f":"SUBTOTAL(109,Flores[ESTIMATIVA])","v":{"v":900,"d":"900.00"}},{"$f":"SUBTOTAL(109,Flores[REAL])","v":{"v":850,"d":"850.00"}},{"$f":"SUBTOTAL(109,Flores[ACIMA/ABAIXO])","v":{"v":50,"d":"50.00"}}]
[]
["A etiqueta Presentes está na célula à direita.","Prendas"]
["Introduza os detalhes na tabela Prendas a partir da célula à direita. A instrução seguinte está na célula A29.","CATEGORIA","ESTIMATIVA","REAL","ACIMA/ABAIXO"]
[null,"Convidados",{"v":1000,"d":"1,000.00"},{"v":400,"d":"400.00"},{"$f":"'Decoração-Flores-Prendas-Desloc'!$C22-'Decoração-Flores-Prendas-Desloc'!$D22","v":{"v":600,"d":"600.00"}}]
[null,"Cônjuge 1",{"v":150,"d":"150.00"},{"v":200,"d":"200.00"},{"$f":"'Decoração-Flores-Prendas-Desloc'!$C23-'Decoração-Flores-Prendas-Desloc'!$D23","v":{"v":-50,"d":"-50.00 "}}]
[null,"Cônjuge 2",{"v":150,"d":"150.00"},{"v":200,"d":"200.00"},{"$f":"'Decoração-Flores-Prendas-Desloc'!$C24-'Decoração-Flores-Prendas-Desloc'!$D24","v":{"v":-50,"d":"-50.00 "}}]
[null,"Pais",{"v":25,"d":"25.00"},{"v":25,"d":"25.00"},{"$f":"'Decoração-Flores-Prendas-Desloc'!$C25-'Decoração-Flores-Prendas-Desloc'!$D25","v":{"v":0,"d":"0.00"}}]
[null,"Oradores/outros convidados",{"v":20,"d":"20.00"},{"v":250,"d":"250.00"},{"$f":"'Decoração-Flores-Prendas-Desloc'!$C26-'Decoração-Flores-Prendas-Desloc'!$D26","v":{"v":-230,"d":"-230.00 "}}]
[null,"Total de Presentes",{"$f":"SUBTOTAL(109,Prendas[ESTIMATIVA])","v":{"v":1345,"d":"1,345.00"}},{"$f":"SUBTOTAL(109,Prendas[REAL])","v":{"v":1075,"d":"1,075.00"}},{"$f":"SUBTOTAL(109,Prendas[ACIMA/ABAIXO])","v":{"v":270,"d":"270.00"}}]
[]
["A etiqueta Deslocações ou Transporte está na célula direita.","Deslocações/Transporte"]
["Introduza os detalhes na tabela Deslocações a partir da célula à direita. A instrução seguinte está na célula A36.","CATEGORIA","ESTIMATIVA","REAL","ACIMA/ABAIXO"]
[null,"Limusinas/Carros",{"v":100,"d":"100.00"},{"v":125,"d":"125.00"},{"$f":"'Decoração-Flores-Prendas-Desloc'!$C31-'Decoração-Flores-Prendas-Desloc'!$D31","v":{"v":-25,"d":"-25.00 "}}]
[null,"Estacionamento",{"v":0,"d":"0.00"},{"v":40,"d":"40.00"},{"$f":"'Decoração-Flores-Prendas-Desloc'!$C32-'Decoração-Flores-Prendas-Desloc'!$D32","v":{"v":-40,"d":"-40.00 "}}]
[null,"Táxis",{"v":0,"d":"0.00"},{"v":0,"d":"0.00"},{"$f":"'Decoração-Flores-Prendas-Desloc'!$C33-'Decoração-Flores-Prendas-Desloc'!$D33","v":{"v":0,"d":"0.00"}}]
[null,"Total de Deslocações/Transporte",{"$f":"SUBTOTAL(109,Deslocações[ESTIMATIVA])","v":{"v":100,"d":"100.00"}},{"$f":"SUBTOTAL(109,Deslocações[REAL])","v":{"v":165,"d":"165.00"}},{"$f":"SUBTOTAL(109,Deslocações[ACIMA/ABAIXO])","v":{"v":-65,"d":"-65.00 "}}]
[]
["A etiqueta Outras Despesas está na célula à direita.","Outras Despesas"]
["Introduza os detalhes na tabela Outras Despesas a partir da célula à direita.","CATEGORIA","ESTIMATIVA","REAL","ACIMA/ABAIXO"]
[null,"Oficiante",{"v":0,"d":"0.00"},{"v":0,"d":"0.00"},{"$f":"'Decoração-Flores-Prendas-Desloc'!$C38-'Decoração-Flores-Prendas-Desloc'!$D38","v":{"v":0,"d":"0.00"}}]
[null,"Taxa do local da cerimónia/igreja",{"v":40,"d":"40.00"},{"v":55,"d":"55.00"},{"$f":"'Decoração-Flores-Prendas-Desloc'!$C39-'Decoração-Flores-Prendas-Desloc'!$D39","v":{"v":-15,"d":"-15.00 "}}]
[null,"Organizador do casamento",{"v":0,"d":"0.00"},{"v":0,"d":"0.00"},{"$f":"'Decoração-Flores-Prendas-Desloc'!$C40-'Decoração-Flores-Prendas-Desloc'!$D40","v":{"v":0,"d":"0.00"}}]
[null,"Jantar de ensaio",{"v":450,"d":"450.00"},{"v":450,"d":"450.00"},{"$f":"'Decoração-Flores-Prendas-Desloc'!$C41-'Decoração-Flores-Prendas-Desloc'!$D41","v":{"v":0,"d":"0.00"}}]
[null,"Festa de noivado",{"v":20,"d":"20.00"},{"v":50,"d":"50.00"},{"$f":"'Decoração-Flores-Prendas-Desloc'!$C42-'Decoração-Flores-Prendas-Desloc'!$D42","v":{"v":-30,"d":"-30.00 "}}]
[null,"Festas com presentes",{"v":30,"d":"30.00"},{"v":20,"d":"20.00"},{"$f":"'Decoração-Flores-Prendas-Desloc'!$C43-'Decoração-Flores-Prendas-Desloc'!$D43","v":{"v":10,"d":"10.00"}}]
[null,"Mobília do salão",{"v":45,"d":"45.00"},{"v":46,"d":"46.00"},{"$f":"'Decoração-Flores-Prendas-Desloc'!$C44-'Decoração-Flores-Prendas-Desloc'!$D44","v":{"v":-1,"d":"-1.00 "}}]
[null,"Despedidas de solteiro/a",{"v":0,"d":"0.00"},{"v":0,"d":"0.00"},{"$f":"'Decoração-Flores-Prendas-Desloc'!$C45-'Decoração-Flores-Prendas-Desloc'!$D45","v":{"v":0,"d":"0.00"}}]
[null,"Brunch",{"v":300,"d":"300.00"},{"v":400,"d":"400.00"},{"$f":"'Decoração-Flores-Prendas-Desloc'!$C46-'Decoração-Flores-Prendas-Desloc'!$D46","v":{"v":-100,"d":"-100.00 "}}]
[null,"Quartos de hotel",{"v":0,"d":"0.00"},{"v":0,"d":"0.00"},{"$f":"'Decoração-Flores-Prendas-Desloc'!$C47-'Decoração-Flores-Prendas-Desloc'!$D47","v":{"v":0,"d":"0.00"}}]
[null,"Total de Outras Despesas",{"$f":"SUBTOTAL(109,OutrasDespesas[ESTIMATIVA])","v":{"v":885,"d":"885.00"}},{"$f":"SUBTOTAL(109,OutrasDespesas[REAL])","v":{"v":1021,"d":"1,021.00"}},{"$f":"SUBTOTAL(109,OutrasDespesas[ACIMA/ABAIXO])","v":{"v":-136,"d":"-136.00 "}}]